Cogmind - Beta 10.2 @@@ ROGUE MODE // 2020.12.09 @ 05:43:57 Player: Hermelin Result: Destroyed by G-34 Mercenary with Small Laser Performance ------------- Evolutions (0) 0 Regions Visited (4) 800 Robots Destroyed (20) 100 Value Destroyed (315) 315 Prototype IDs (25) 500 Alien Tech Used (0) 0 Bonus (279) 279 TOTAL SCORE: 1994 Bonus ------- Aligned with FarCom 300 Friendly Fire -21 Cogmind --------- Core Integrity 0/250 Matter 298/300 Energy 78/100 System Corruption 0% Temperature Cool (35) Movement Treading (160) Location -9/Mines Parts ------- > --- POWER (1) -------- (None) > --- PROPULSION (2) --- Improved Treads Improved Treads > --- UTILITY (2) ------ Large Storage Unit Large Storage Unit > --- WEAPON (2) ------- EM Shotgun Light Assault Rifle > --- INVENTORY (16) --- Improved Treads Improved Treads Large Storage Unit High-capacity Matter Pod (200) Hacking Suite EM Pulse Gun EM Pulse Gun EM Pulse Gun EM Shotgun Medium Laser Assault Rifle Light Assault Rifle XL Autogun Array Peak State ------------ > --- POWER ------------ (None) > --- PROPULSION ------- Improved Treads Improved Treads > --- UTILITY ---------- Large Storage Unit Large Storage Unit > --- WEAPON ----------- EM Shotgun Light Assault Rifle > --- INVENTORY -------- Improved Treads Improved Treads Large Storage Unit Large Matter Pod Hacking Suite EM Pulse Gun EM Pulse Gun EM Pulse Gun EM Shotgun Medium Laser Assault Rifle Light Assault Rifle XL Autogun Array [Rating: 14] Favorites ----------- Power Light Ion Engine Engine Light Ion Engine Propulsion Improved Treads Treads Improved Treads Utility Large Storage Unit Storage Large Storage Unit Weapon Particle Cannon Energy Gun EM Shotgun Energy Cannon Particle Cannon Ballistic Gun Light Assault Rifle Build | -11 -10 -10 -10 -9 ------- Run | Scr Mat Min Exi Min Slots Evolved . | . . . . . Power . | . . . . . Propulsion . | . . . . . Utility . | . . . . . Weapon . | . . . . . Parts Attached 31 | 7 18 6 . . Power 5 | 1 3 1 . . Engine 5 | 1 3 1 . . Core . | . . . . . Reactor . | . . . . . Propulsion 10 | 2 8 . . . Treads 10 | 2 8 . . . Leg . | . . . . . Wheel . | . . . . . Hover . | . . . . . Flight . | . . . . . Utility 4 | 2 2 . . . Device . | . . . . . Storage 4 | 2 2 . . . Processor . | . . . . . Hackware . | . . . . . Protection . | . . . . . Artifact . | . . . . . Weapon 12 | 2 5 5 . . Energy Gun 5 | 1 . 4 . . Energy Cannon 5 | . 5 . . . Ballistic Gun 2 | 1 . 1 . . Ballistic Cannon . | . . . . . Launcher . | . . . . . Special Weapon . | . . . . . Impact Weapon . | . . . . . Slashing Weapon . | . . . . . Piercing Weapon . | . . . . . Special Melee Weapon . | . . . . . Unidentified Prototypes . | . . . . . Parts Lost 7 | . 1 6 . . Power 3 | . 1 2 . . Propulsion . | . . . . . Utility . | . . . . . Weapon 4 | . . 4 . . Highest Loss Streak 3 | . 1 3 . . Average Slot Usage (%) 93 | . 95 97 85 . Engine 8 | . 11 12 . . Treads 27 | . 27 28 28 . Storage 28 | . 28 28 28 . Energy Gun 6 | . 1 20 14 . Energy Cannon 17 | . 24 6 . . Ballistic Gun 4 | . 1 1 14 . Naked Turns . | . . . . . Heaviest Build 43 | 14 43 43 36 . Greatest Support 46 | 40 46 46 46 . Greatest Overweight (x) 1 | . 1 . . . Average Overweight (x) . | . . . . . Largest Inventory Capacity 16 | 8 16 16 16 16 Average Capacity 12 | 5 10 16 16 16 Most Carried 16 | 5 16 16 16 16 Average Carried 11 | 2 9 14 14 16 Final Capacity 16 | 8 16 16 16 16 Final Carried 16 | 5 16 13 16 16 Class Distribution -------------------- 100% | Mutant Dominant Class ---------------- Mutant | -10/Materials Mutant | -10/Mines Mutant | -10/Exiles Mutant | -9/Mines Resources | -11 -10 -10 -10 -9 ----------- Run | Scr Mat Min Exi Min Matter Collected 640 | 273 307 60 . . Remotely . | . . . . . Salvage Created 641 | 94 336 161 . 50 Parts 34 | 2 27 4 . 1 Haulers Intercepted 1 | . 1 . . . Recyclers Shooed . | . . . . . Parts Field Recycled . | . . . . . Retrieved Matter . | . . . . . Parts Self-Destructed . | . . . . . Prevented . | . . . . . Kills | -11 -10 -10 -10 -9 ------- Run | Scr Mat Min Exi Min Combat Hostiles Destroyed 21 | . 10 10 . 1 Guns 11 | . 2 8 . 1 Cannons 9 | . 8 1 . . AOE 1 | . . 1 . . Classes Destroyed 9 | 1 7 1 . . Worker 1 | . 1 . . . Builder 1 | . 1 . . . Hauler 1 | . 1 . . . Recycler 1 | 1 . . . . Operator 1 | . 1 . . . Watcher 1 | . 1 . . . Swarmer 10 | . 7 3 . . Grunt 4 | . 3 . . 1 Assembled 7 | . . 7 . . Best Kill Streak 4 | 1 3 4 . 1 Combat Bots Only 4 | . 3 4 . 1 Max Kills in Single Turn 1 | 1 1 1 . 1 Gunslinging . | . . . . . Exploded 1 | . . 1 . . Melee . | . . . . . Uniques/NPCs Destroyed . | . . . . . Combat | -11 -10 -10 -10 -9 -------- Run | Scr Mat Min Exi Min Damage Taken 1144 | . 398 672 . 74 Core 254 | . 48 195 . 11 Absorbed by Shields . | . . . . . Core Remaining (%) 100 | 100 . . . . Volleys Fired 88 | 6 47 33 . 2 Largest 2 | 2 2 2 . 2 Hottest 136 | 60 136 136 . 65 Shots Fired 160 | 7 93 56 . 4 Gun 70 | 7 12 47 . 4 Cannon 90 | . 81 9 . . Launcher . | . . . . . Special . | . . . . . Kinetic 14 | 1 6 5 . 2 Thermal 102 | 6 87 9 . . Explosive . | . . . . . Electromagnetic 44 | . . 42 . 2 Robot Hit Streak 7 | 4 7 6 . 5 Robot Miss Streak 6 | 1 6 4 . 1 Penetration Max . | . . . . . Secondary Targets 2 | . . 2 . . Max Gunslinging Chain 1 | . . 1 . . Shots Hit Robots 100 | 5 53 38 . 4 Core Hits 46 | 2 16 24 . 4 Critical Hits . | . . . . . Critical Kills . | . . . . . Critical Parts Destroyed . | . . . . . Melee Attacks . | . . . . . Impact . | . . . . . Slashing . | . . . . . Piercing . | . . . . . Sneak Attacks . | . . . . . Combat Hostiles . | . . . . . Follow-up Attacks . | . . . . . Damage Inflicted 1818 | 53 1210 497 . 58 Guns 464 | 53 46 307 . 58 Cannons 1277 | . 1145 132 . . Explosions 58 | . . 58 . . Melee . | . . . . . Ramming 19 | . 19 . . . Kinetic 69 | . 25 27 . 17 Thermal 1409 | 53 1166 190 . . Explosive . | . . . . . Electromagnetic 321 | . . 280 . 41 Impact . | . . . . . Slashing . | . . . . . Piercing . | . . . . . Highest Corruption . | . . . . . Average Corruption . | . . . . . Corruption Purged . | . . . . . Overload Shots . | . . . . . Overflow Damage 64 | . 32 32 . . Projectiles 39 | . 32 7 . . Explosions 25 | . . 25 . . Melee . | . . . . . Knockbacks . | . . . . . Impact . | . . . . . Kinetic . | . . . . . Secondary . | . . . . . Self-Inflicted Damage 37 | . . 37 . . Shots 1 | . . 1 . . Rammed 6 | . 6 . . . Targets Rammed 6 | . 6 . . . Kicked . | . . . . . Crushed . | . . . . . Highest Temperature 398 | . 398 362 . 29 Average Temperature 152 | . 132 197 . 21 Received Heat Transfer 279 | . 120 120 . 39 Effects 8 | . 3 5 . . Energy Bleed 2 | . 1 1 . . Interference 4 | . 1 3 . . Short Circuit 1 | . . 1 . . Damage (minor) 1 | . 1 . . . Siege Activations . | . . . . . Robots Corrupted . | . . . . . Combat Hostiles . | . . . . . Parts Fried . | . . . . . Impact Corruptions . | . . . . . Robots Melted . | . . . . . Combat Hostiles . | . . . . . Parts Melted 3 | . 2 1 . . Heat Transferred 2421 | 125 1974 322 . . Parts Sabotaged . | . . . . . Parts Stolen . | . . . . . Parts Stripped . | . . . . . Power Chain Reactions 1 | . . 1 . . Missiles Intercepted . | . . . . . Alert | -11 -10 -10 -10 -9 ------- Run | Scr Mat Min Exi Min Peak Influence 195 | 5 195 91 . 30 Initial 51 | . 3 51 . . Average 77 | . 83 67 . 7 Maximum Alert Level . | . . . . . Low Security (%) 100 | 100 100 100 . 100 Level 1 . | . . . . . Level 2 . | . . . . . Level 3 . | . . . . . Level 4 . | . . . . . Level 5 . | . . . . . High Security . | . . . . . Max Security . | . . . . . Squads Dispatched 5 | . 5 . . . Investigation 5 | . 5 . . . Extermination . | . . . . . Reinforcement . | . . . . . Assault . | . . . . . Garrison . | . . . . . Intercept . | . . . . . Construction Impeded . | . . . . . Haulers Reinforced . | . . . . . Stealth | -11 -10 -10 -10 -9 --------- Run | Scr Mat Min Exi Min Distress Signals 2 | . 1 1 . . Communications Jammed . | . . . . . Distress Signals . | . . . . . Times Spotted 55 | . 32 20 . 3 Peak Tracking Total 18 | . 6 18 . 2 Tactical Retreats 14 | . 11 3 . . Traps | -11 -10 -10 -10 -9 ------- Run | Scr Mat Min Exi Min Traps Triggered 8 | . 8 . . . Indirectly . | . . . . . Trap Hack Attempts . | . . . . . Triggered . | . . . . . Disarmed . | . . . . . Reprogrammed . | . . . . . Reused . | . . . . . Traps Extracted . | . . . . . Installed . | . . . . . Triggered . | . . . . . Machines | -11 -10 -10 -10 -9 ---------- Run | Scr Mat Min Exi Min Machines Disabled 2 | . 2 . . . Max in Single Turn 1 | . 1 . . . Machines Sabotaged . | . . . . . Garrisons Compromised . | . . . . . Overloaded Fab Kills . | . . . . . Fab Network Shutdowns . | . . . . . Hacking | -11 -10 -10 -10 -9 --------- Run | Scr Mat Min Exi Min Machines Accessed 11 | . 9 . 2 . Terminals 6 | . 6 . . . Fabricators . | . . . . . Repair Stations 1 | . 1 . . . Recycling Units 2 | . 2 . . . Scanalyzers . | . . . . . Garrison Access . | . . . . . Total Hacks 34 | . 32 . 2 . Successful 18 | . 16 . 2 . Failed 16 | . 16 . . . Catastrophic 1 | . 1 . . . Database Lockouts . | . . . . . Manual 17 | . 16 . 1 . Terminals 25 | . 25 . . . Fabricators . | . . . . . Repair Stations 3 | . 3 . . . Recycling Units 4 | . 4 . . . Scanalyzers . | . . . . . Garrison Access . | . . . . . Terminal Hacks 10 | . 8 . 2 . Record 1 | . . . 1 . Robot Schematic 1 | . 1 . . . Robot Analysis 3 | . 3 . . . Prototype ID Bank 1 | . 1 . . . Terminal Index 1 | . 1 . . . Locate Traps 1 | . 1 . . . Zone Layout 1 | . 1 . . . EX-Prototype ID Bank 1 | . . . 1 . Fabricator Hacks . | . . . . . Repair Station Hacks 2 | . 2 . . . Scan Component 1 | . 1 . . . Repair 1 | . 1 . . . Recycling Unit Hacks 2 | . 2 . . . Report Inventory 2 | . 2 . . . Scanalyzer . | . . . . . Garrison Access Hacks . | . . . . . Unauthorized Hacks 4 | . 4 . . . Terminals 2 | . 2 . . . Track 1 | . 1 . . . Botnet 1 | . 1 . . . Fabricators . | . . . . . Repair Stations . | . . . . . Recycling Units 2 | . 2 . . . Tunnel 2 | . 2 . . . Scanalyzers . | . . . . . Garrison Access . | . . . . . Data Cores Recovered . | . . . . . Used . | . . . . . Hacking Detections 7 | . 7 . . . Full Trace Events 1 | . 1 . . . Feedback Events . | . . . . . Feedback Blocked . | . . . . . Robot Schematics Acquired 1 | . 1 . . . Robots Built . | . . . . . Matter . | . . . . . Time . | . . . . . Total Robot Build Rating . | . . . . . Part Schematics Acquired . | . . . . . Parts Built . | . . . . . Matter . | . . . . . Time . | . . . . . Total Part Build Rating . | . . . . . Parts Repaired 1 | . 1 . . . Time 32 | . 32 . . . Parts Recycled . | . . . . . Recycled Matter . | . . . . . Retrieved Matter . | . . . . . Retrieved Components . | . . . . . Parts Scanalyzed . | . . . . . Part Schematics Acquired . | . . . . . Parts Damaged . | . . . . . Bothacking | -11 -10 -10 -10 -9 ------------ Run | Scr Mat Min Exi Min Used RIF Installer . | . . . . . Robots Hacked . | . . . . . Non-combat . | . . . . . Combat . | . . . . . Robot Hacks Applied . | . . . . . Relay Couplers Released . | . . . . . Robots Rewired . | . . . . . Allies Hacked . | . . . . . Hacks Repelled . | . . . . . Allies | -11 -10 -10 -10 -9 -------- Run | Scr Mat Min Exi Min Total Allies 1 | . . 1 . . Largest Group 1 | . . 1 . . Highest-Rated Group 26 | . . 26 . . Highest-Rated Ally 26 | . . 26 . . Total Orders . | . . . . . Ally Attacks . | . . . . . Total Damage . | . . . . . Kills . | . . . . . Allies Corrupted . | . . . . . Allies Melted . | . . . . . Intel | -11 -10 -10 -10 -9 ------- Run | Scr Mat Min Exi Min Robot Analysis Total 3 | . 3 . . . Derelict Logs Recovered 1 | . . 1 . . Drone Launches . | . . . . . Drone Recoveries . | . . . . . Exploration | -11 -10 -10 -10 -9 ------------- Run | Scr Mat Min Exi Min Turns Passed 2475 | 96 1617 215 543 4 Spaces Moved 1074 | 45 620 70 339 . Core 3 | 3 . . . . Treads 1071 | 42 620 70 339 . Legs . | . . . . . Wheels . | . . . . . Hover . | . . . . . Flight . | . . . . . Fastest Speed 50 | 50 160 160 160 . Average Speed 159 | 152 160 160 160 . Slowest Speed 180 | 160 180 160 160 . Overloaded Moves . | . . . . . Propulsion Burnouts . | . . . . . Robots Hopped . | . . . . . Cave-ins Triggered . | . . . . . Exploration Rate (%) 37 | 5 96 12 70 3 Regions Visited 4 Branch Regions 3 Pre-discovered Areas 4 | . 2 1 1 . Known Exits Taken . | . . . . . Unknown Exits Taken 4 | 1 1 1 1 . Scrap Searched . | . . . . . Spaces Dug . | . . . . . Terrain Destroyed 3 | . . 3 . . Melee . | . . . . . Projectile . | . . . . . AOE 3 | . . 3 . . Terrain Rammed . | . . . . . Walls Destroyed . | . . . . . Machines Disabled . | . . . . . Actions | -11 -10 -10 -10 -9 --------- Run | Scr Mat Min Exi Min Total 1673 | 62 1149 118 342 2 Wait 437 | . 429 8 . . Move 1070 | 44 619 69 338 . Hop . | . . . . . Pick Up 26 | 5 17 2 2 . Fast Attach 20 | 7 13 . . . Attach 5 | . . 5 . . Detach 1 | . 1 . . . Swap 6 | . 5 1 . . Drop 14 | . 12 . 2 . Fire 88 | 6 47 33 . 2 Melee . | . . . . . Ram . | . . . . . Kick . | . . . . . Crush 6 | . 6 . . . Escape Stasis . | . . . . . Rewire . | . . . . . Trap . | . . . . . Miscellaneous . | . . . . . Route ------- -11/Scrapyard -10/Materials (discovered 5 exits: [*Mat x3] / [*Min x2]) -10/Mines -10/Exiles -9/Mines History --------- Turn | Location | Event 29 | -11/Scrapyard | Discovered new exit (range 15) 97 | -11/Scrapyard | Entered Materials 306 | -10/Materials | Build established: Mutant 478 | -10/Materials | Discovered new exit (range 13) 1024 | -10/Materials | Discovered new exit (range 15) 1116 | -10/Materials | Discovered new exit (range 7) 1225 | -10/Materials | Discovered new exit (range 16) 1373 | -10/Materials | Discovered new exit (range 7) 1649 | -10/Materials | Repaired Imp. Treads 1714 | -10/Materials | Entered Mines 1793 | -10/Mines | Lost 3 parts (1p2w) 1808 | -10/Mines | Escorted by a lone wolf Derelict 1824 | -10/Mines | Assembled infested the area 1828 | -10/Mines | Learned location of Storage (-8) 1829 | -10/Mines | Assisted by a Guerilla fighting off Assembled 1833 | -10/Mines | Learned Materials terminal intel 1863 | -10/Mines | Core integrity fell below 50% 1892 | -10/Mines | Core integrity fell below 20% 1923 | -10/Mines | Deemed a non-threat by the Exiles lab entrance 1923 | -10/Mines | Discovered new exit (range 5) 1929 | -10/Mines | Entered Exiles 1968 | -10/Exiles | Met 8R-AWN 1995 | -10/Exiles | Met EX-HEX 2056 | -10/Exiles | Met EX-DEC 2070 | -10/Exiles | Learned location of Zion (-6) 2104 | -10/Exiles | Met EX-BIN 2133 | -10/Exiles | Aligned with FarCom system 2134 | -10/Exiles | Given EX-Vault access code 2173 | -10/Exiles | Opened EX-Vault 2184 | -10/Exiles | Found XL Autogun Array 2219 | -10/Exiles | Warned to stay clear of 0b10 Research branches 2456 | -10/Exiles | Discovered new exit (range 11) 2472 | -10/Exiles | Left Exiles lab with XL Autogun Array 2472 | -10/Exiles | Entered Mines 2476 | -9/Mines | Destroyed by G-34 Mercenary with Small Laser Last Messages --------------- EX-BIN: Oh yeah, I'd suggest you stay away from the 0b10 Research branches, since the FarCom signals could be picked up there, but you're welcome to try if you really want to. And if we have to leave here due to unforeseen circumstances, don't worry the FarCom system will continue to maintain contact via our distributed network. EX-BIN: And don't even think about spreading that code around. We're gonna change it right after you leave. Most certainly not to something like 1234 which I did last time as a little joke and some thief managed to sneak in here and steal a few of HEX's prototypes. 02413_ Dropped Lrg. Matter Pod. 02413_ Acquired Hcp. Matter Pod. 02423_ Extracted 4 energy. 02456_ EXIT=FOUND LOCATION=UNKNOWN GOAL=ESCAPE 02472_ Receiving FarCom transmissions... 02473_ T-07 Excavator is excavating. 02475_ G-47 Trooper destroyed. 02476_ T-07 Excavator is excavating. Map ----- +----------------------------------------------------+ | | | | | | | | | | | | | | | | | | | | | | | | | | | | | | | | | | | | | ?????????????????????????????????????????????????? | | ?????????????????????????????????????????????????? | | ?????????????????????????????????????????????????? | | ?????????????????????????????????????????????????? | | ???????????????????????########??????????????????? | | ???????????????????##### #??????????????????? | | ???????????????????# #??????????????????? | | ???????????????????# @ #??????????????????? | | ????????????????# t ###g%g #??????????????????? | | ???????????????????????### ###??????????????????? | | ?????????????????????????? #????????????????????? | | ?????????????????????????? #????????????????????? | | ?????????????????????????? #????????????????????? | | ??????????????????????????? #????????????????????? | | ??????????????????????????? #????????????????????? | | ???????????????????????????##????????????????????? | | ?????????????????????????????????????????????????? | | ?????????????????????????????????????????????????? | | ?????????????????????????????????????????????????? | | ?????????????????????????????????????????????????? | | ??????????????????????????????g??????????????????? | | ?????????????????????????????????????????????????? | | ?????????????????????????????gg??????????????????? | | ?????????????????????????????????????????????????? | | ?????????????????????????????????????????????????? | | ?????????????????????????????????????????????????? | | ?????????????????????????????????????????????????? | | ?????????????????????????????????????????????????? | | ?????????????????????????????????????????????????? | | ?????????????????????????????????????????????????? | | ?????????????????????????????????????????????????? | | ?????????????????????????????????????????????????? | +----------------------------------------------------+ Best States ------------- Heat Dissipation 25 Energy Generation 10 Energy Capacity 250 Matter Stores 300 Matter Capacity 300 Sight Range 16 Terrain Scan Density 10 Evasion (%) 40 Recoil Reduction 2 Item Schematics ----------------- None Robot Schematics ------------------ M-13 Machinist | -10/Materials | Hacked Fabricated ------------ Nothing Alien Tech Used ----------------- None Achievements -------------- None Challenges ------------ None Game ------ Seed EtherialGreatProcessor Manual? 0 Play Time 00:15:12 Cumulative 408.1 hours Start 2020.12.09 @ 05:28:56 End 2020.12.09 @ 05:43:57 Sessions 1 Manual Loads 0 Difficulty Rogue Special Mode None Game No. 152 Rogue 149 Adventurer 3 Explorer 0 Win Type - Total 6 Types 3/1/0/1/0/1/0/0/0 Lore% 90 Gallery% 94 Achievement% 76 Wizard Run 0 Options --------- ASCII 0 Keyboard 0 Movement Numpad Keybinds 0 Fullscreen 1 Font 18/SmallcapsGlow Map View 76x50 Tactical HUD 1 Map Filters NONE Filters NONE Steam 1 RUN: c840b9a6-bab8-47b8-a8d6-765b2757ae99